[Event "Titled Tuesday Blitz February 21 Early 2023"]
[White "Volkov, Maksim"]
[Black "Rottenwohrer Suarez, Juan"]
[WhiteFideId "54123070"]
[BlackFideId "32068182"]
[WhiteElo "2258"]
[BlackElo "2265"]
[Result "0-1"]
[Round "03"]
[TimeControl "180+2"]
[Date "2023.02.21"]
[WhiteClock "0:00:13"]
[BlackClock "0:00:15"]

1. e4 {[%clk 0:03:00]}  c5 {[%clk 0:02:58]} 2. Nf3 {[%clk 0:03:00]}  g6 {[%clk 0:02:59]} 3. d4 {[%clk 0:02:56]}  cxd4 {[%clk 0:03:00]} 4. Nxd4 {[%clk 0:02:56]}  Nc6 {[%clk 0:03:00]} 5. c4 {[%clk 0:02:55]}  Nf6 {[%clk 0:03:00]} 6. Nc3 {[%clk 0:02:54]}  d6 {[%clk 0:03:01]} 7. Be2 {[%clk 0:02:53]}  Nxd4 {[%clk 0:03:01]} 8. Qxd4 {[%clk 0:02:53]}  Bg7 {[%clk 0:03:02]} 9. O-O {[%clk 0:02:47]}  O-O {[%clk 0:03:02]} 10. Qd3 {[%clk 0:02:46]}  a5 {[%clk 0:02:43]} 11. Be3 {[%clk 0:02:35]}  a4 {[%clk 0:02:43]} 12. f3 {[%clk 0:02:31]}  Qa5 {[%clk 0:02:43]} 13. Bd4 {[%clk 0:02:26]}  Be6 {[%clk 0:02:41]} 14. Rfc1 {[%clk 0:02:23]}  Rfc8 {[%clk 0:02:40]} 15. Nd5 {[%clk 0:02:18]}  Bxd5 {[%clk 0:02:28]} 16. exd5 {[%clk 0:02:11]}  Nd7 {[%clk 0:02:27]} 17. Bxg7 {[%clk 0:02:08]}  Kxg7 {[%clk 0:02:27]} 18. Kh1 {[%clk 0:01:59]}  Qb6 {[%clk 0:02:17]} 19. Qc3+ {[%clk 0:01:57]}  Kg8 {[%clk 0:02:16]} 20. f4 {[%clk 0:01:58]}  Qf2 {[%clk 0:02:09]} 21. Bg4 {[%clk 0:01:56]}  Rc7 {[%clk 0:02:05]} 22. Rf1 {[%clk 0:01:48]}  Qh4 {[%clk 0:02:05]} 23. Bxd7 {[%clk 0:01:44]}  Rxd7 {[%clk 0:02:06]} 24. Rae1 {[%clk 0:01:43]}  Rc7 {[%clk 0:02:06]} 25. Qb4 {[%clk 0:01:38]}  Qf6 {[%clk 0:01:55]} 26. Re4 {[%clk 0:01:03]}  Rac8 {[%clk 0:01:01]} 27. h3 {[%clk 0:00:54]}  Qf5 {[%clk 0:00:43]} 28. Rfe1 {[%clk 0:00:51]}  Qf6 {[%clk 0:00:43]} 29. R1e2 {[%clk 0:00:43]}  Ra8 {[%clk 0:00:32]} 30. Qb6 {[%clk 0:00:42]}  Rac8 {[%clk 0:00:30]} 31. Qb4 {[%clk 0:00:37]}  Ra8 {[%clk 0:00:30]} 32. Kh2 {[%clk 0:00:35]}  Kg7 {[%clk 0:00:30]} 33. Qe1 {[%clk 0:00:29]}  a3 {[%clk 0:00:24]} 34. b3 {[%clk 0:00:27]}  b5 {[%clk 0:00:23]} 35. Rxe7 {[%clk 0:00:24]}  Qxf4+ {[%clk 0:00:22]} 36. Qg3 {[%clk 0:00:20]}  Qxg3+ {[%clk 0:00:20]} 37. Kxg3 {[%clk 0:00:21]}  Rxe7 {[%clk 0:00:21]} 38. Rxe7 {[%clk 0:00:22]}  bxc4 {[%clk 0:00:21]} 39. bxc4 {[%clk 0:00:18]}  Rc8 {[%clk 0:00:22]} 40. Ra7 {[%clk 0:00:18]}  Rxc4 {[%clk 0:00:21]} 41. Rxa3 {[%clk 0:00:18]}  Rc5 {[%clk 0:00:15]} 42. Rd3 {[%clk 0:00:18]}  Kf6 {[%clk 0:00:14]} 43. Kf4 {[%clk 0:00:18]}  Rc4+ {[%clk 0:00:15]} 44. Kf3 {[%clk 0:00:13]}  Ke5 {[%clk 0:00:15]} 0-1


[Site "https://www.chess.com"]

[Event "Titled Tuesday Blitz February 21 Early 2023"]
[White "Sargissyan, Sargis"]
[Black "Goroshkov, Maksym"]
[WhiteFideId "13303210"]
[BlackFideId "14142716"]
[WhiteElo "2234"]
[BlackElo "2287"]
[Result "0-1"]
[Round "03"]
[TimeControl "180+2"]
[Date "2023.02.21"]
[WhiteClock "0:00:13"]
[BlackClock "0:00:25"]

1. e4 {[%clk 0:02:46]}  c5 {[%clk 0:02:59]} 2. Nf3 {[%clk 0:02:46]}  d6 {[%clk 0:02:59]} 3. d4 {[%clk 0:02:46]}  cxd4 {[%clk 0:03:00]} 4. Nxd4 {[%clk 0:02:47]}  g6 {[%clk 0:03:00]} 5. Nc3 {[%clk 0:02:48]}  Bg7 {[%clk 0:03:00]} 6. Bd2 {[%clk 0:02:48]}  Bxd4 {[%clk 0:03:00]} 7. h4 {[%clk 0:02:22]}  h5 {[%clk 0:02:57]} 8. Be2 {[%clk 0:02:20]}  Nc6 {[%clk 0:02:54]} 9. Nd5 {[%clk 0:02:15]}  Nf6 {[%clk 0:02:48]} 10. c3 {[%clk 0:02:14]}  Bb6 {[%clk 0:02:32]} 11. Nxf6+ {[%clk 0:02:10]}  exf6 {[%clk 0:02:32]} 12. O-O {[%clk 0:01:53]}  O-O {[%clk 0:02:31]} 13. Bxh5 {[%clk 0:01:34]}  f5 {[%clk 0:02:19]} 14. Bf3 {[%clk 0:01:29]}  Ne5 {[%clk 0:02:16]} 15. Bg5 {[%clk 0:01:24]}  Qc7 {[%clk 0:02:08]} 16. Bf6 {[%clk 0:01:18]}  Re8 {[%clk 0:01:52]} 17. exf5 {[%clk 0:01:16]}  Bxf5 {[%clk 0:01:49]} 18. Bd5 {[%clk 0:01:15]}  Ng4 {[%clk 0:01:46]} 19. Bg5 {[%clk 0:01:11]}  Nxf2 {[%clk 0:01:18]} 20. Rxf2 {[%clk 0:01:08]}  Qc5 {[%clk 0:01:16]} 21. Qf3 {[%clk 0:00:59]}  Qxf2+ {[%clk 0:01:04]} 22. Qxf2 {[%clk 0:00:59]}  Bxf2+ {[%clk 0:00:58]} 23. Kxf2 {[%clk 0:01:00]}  Be4 {[%clk 0:00:58]} 24. Bb3 {[%clk 0:00:56]}  d5 {[%clk 0:00:58]} 25. Rd1 {[%clk 0:00:54]}  Re5 {[%clk 0:00:52]} 26. Bf4 {[%clk 0:00:53]}  Rf5 {[%clk 0:00:52]} 27. Kg3 {[%clk 0:00:33]}  Bxg2 {[%clk 0:00:46]} 28. Kxg2 {[%clk 0:00:20]}  Rxf4 {[%clk 0:00:46]} 29. Rxd5 {[%clk 0:00:21]}  a5 {[%clk 0:00:31]} 30. a4 {[%clk 0:00:18]}  Re8 {[%clk 0:00:28]} 31. Rd7 {[%clk 0:00:17]}  b6 {[%clk 0:00:27]} 32. Kg3 {[%clk 0:00:17]}  Rf6 {[%clk 0:00:27]} 33. Bc4 {[%clk 0:00:16]}  Re3+ {[%clk 0:00:25]} 34. Kg4 {[%clk 0:00:14]}  Re4+ {[%clk 0:00:25]} 35. Kg5 {[%clk 0:00:13]}  Rf5+ {[%clk 0:00:25]} 0-1


[Site "https://www.chess.com"]

[Event "Titled Tuesday Blitz February 21 Early 2023"]
[White "Al-Tarboush, Ward"]
[Black "Goncalves, Davi Sulzbacher"]
[WhiteFideId "7601450"]
[BlackFideId "2154510"]
[WhiteElo "2256"]
[BlackElo "2282"]
[Result "1-0"]
[Round "03"]
[TimeControl "180+2"]
[Date "2023.02.21"]
[WhiteClock "0:02:00"]
[BlackClock "0:00:05"]

1. e4 {[%clk 0:02:58]}  c5 {[%clk 0:02:59]} 2. Nf3 {[%clk 0:02:59]}  d6 {[%clk 0:02:59]} 3. d4 {[%clk 0:02:59]}  cxd4 {[%clk 0:03:00]} 4. Nxd4 {[%clk 0:03:00]}  Nf6 {[%clk 0:03:01]} 5. Nc3 {[%clk 0:03:01]}  a6 {[%clk 0:03:01]} 6. h3 {[%clk 0:03:01]}  h5 {[%clk 0:02:59]} 7. Bg5 {[%clk 0:02:57]}  Nbd7 {[%clk 0:02:56]} 8. Bc4 {[%clk 0:02:52]}  Qc7 {[%clk 0:02:36]} 9. Bb3 {[%clk 0:02:50]}  e6 {[%clk 0:02:34]} 10. Qe2 {[%clk 0:02:40]}  b5 {[%clk 0:02:30]} 11. O-O-O {[%clk 0:02:37]}  b4 {[%clk 0:02:26]} 12. Nd5 {[%clk 0:02:37]}  Qb7 {[%clk 0:01:31]} 13. Rhe1 {[%clk 0:02:25]}  Be7 {[%clk 0:00:59]} 14. Nxe7 {[%clk 0:02:22]}  Kxe7 {[%clk 0:00:59]} 15. Nf5+ {[%clk 0:02:17]}  exf5 {[%clk 0:00:19]} 16. exf5+ {[%clk 0:02:17]}  Ne5 {[%clk 0:00:17]} 17. Rxd6 {[%clk 0:02:16]}  Qb5 {[%clk 0:00:13]} 18. Bc4 {[%clk 0:02:01]}  Qc5 {[%clk 0:00:12]} 19. Rd5 {[%clk 0:02:00]}  Qxd5 {[%clk 0:00:04]} 20. Bxd5 {[%clk 0:02:00]}  Kd6 {[%clk 0:00:05]} 21. Qxe5+ {[%clk 0:02:00]} 1-0


[Site "https://www.chess.com"]

[Event "Titled Tuesday Blitz February 21 Early 2023"]
[White "Wadsworth, Matthew J"]
[Black "Devaev, Alexander"]
[WhiteFideId "415804"]
[BlackFideId "4169395"]
[WhiteElo "2428"]
[BlackElo "2325"]
[Result "1-0"]
[Round "03"]
[TimeControl "180+2"]
[Date "2023.02.21"]
[WhiteClock "0:00:07"]
[BlackClock "0:00:02"]

1. Nc3 {[%clk 0:03:00]}  d5 {[%clk 0:02:56]} 2. e4 {[%clk 0:03:00]}  c6 {[%clk 0:02:56]} 3. d4 {[%clk 0:02:55]}  dxe4 {[%clk 0:02:55]} 4. Nxe4 {[%clk 0:02:55]}  Bf5 {[%clk 0:02:56]} 5. Ng3 {[%clk 0:02:55]}  Bg6 {[%clk 0:02:56]} 6. Nh3 {[%clk 0:02:55]}  e6 {[%clk 0:02:56]} 7. Nf4 {[%clk 0:02:55]}  Bd6 {[%clk 0:02:57]} 8. Nfh5 {[%clk 0:02:51]}  Bf8 {[%clk 0:02:54]} 9. c3 {[%clk 0:02:42]}  Nf6 {[%clk 0:02:52]} 10. Bg5 {[%clk 0:02:40]}  Nbd7 {[%clk 0:02:52]} 11. Qd2 {[%clk 0:02:35]}  Qb6 {[%clk 0:02:38]} 12. Nxf6+ {[%clk 0:02:30]}  Nxf6 {[%clk 0:02:17]} 13. h4 {[%clk 0:02:09]}  Ne4 {[%clk 0:02:08]} 14. Nxe4 {[%clk 0:02:07]}  Bxe4 {[%clk 0:02:08]} 15. f3 {[%clk 0:02:06]}  Bd5 {[%clk 0:02:08]} 16. Bd3 {[%clk 0:01:48]}  c5 {[%clk 0:01:51]} 17. dxc5 {[%clk 0:01:24]}  Bxc5 {[%clk 0:01:45]} 18. b4 {[%clk 0:01:22]}  Bd6 {[%clk 0:01:36]} 19. a4 {[%clk 0:01:05]}  Bg3+ {[%clk 0:01:25]} 20. Kf1 {[%clk 0:01:04]}  O-O {[%clk 0:01:09]} 21. c4 {[%clk 0:00:47]}  Bc6 {[%clk 0:01:04]} 22. b5 {[%clk 0:00:44]}  Bd7 {[%clk 0:01:00]} 23. Be3 {[%clk 0:00:26]}  Qc7 {[%clk 0:00:59]} 24. Rd1 {[%clk 0:00:20]}  Rad8 {[%clk 0:00:58]} 25. h5 {[%clk 0:00:17]}  f5 {[%clk 0:00:42]} 26. h6 {[%clk 0:00:14]}  Bc8 {[%clk 0:00:17]} 27. f4 {[%clk 0:00:12]}  e5 {[%clk 0:00:14]} 28. hxg7 {[%clk 0:00:11]}  Qxg7 {[%clk 0:00:12]} 29. Rh3 {[%clk 0:00:11]}  Bxf4 {[%clk 0:00:07]} 30. Bxf4 {[%clk 0:00:11]}  exf4 {[%clk 0:00:08]} 31. Qxf4 {[%clk 0:00:11]}  Kh8 {[%clk 0:00:08]} 32. Kf2 {[%clk 0:00:10]}  Rd4 {[%clk 0:00:07]} 33. Qh6 {[%clk 0:00:09]}  Rg4 {[%clk 0:00:06]} 34. Qxg7+ {[%clk 0:00:09]}  Kxg7 {[%clk 0:00:06]} 35. Rdh1 {[%clk 0:00:08]}  Rh8 {[%clk 0:00:04]} 36. Be2 {[%clk 0:00:08]}  Rg5 {[%clk 0:00:04]} 37. Re3 {[%clk 0:00:08]}  Kf6 {[%clk 0:00:03]} 38. Rh6+ {[%clk 0:00:07]}  Rg6 {[%clk 0:00:02]} 39. Rh4 {[%clk 0:00:07]}  Be6 {[%clk 0:00:02]} 40. Bf3 {[%clk 0:00:07]} 1-0


[Site "https://www.chess.com"]

[Event "Titled Tuesday Blitz February 21 Early 2023"]
[White "Jakubowski, Krzysztof"]
[Black "Babikov, Ivan"]
[WhiteFideId "1112848"]
[BlackFideId "4161106"]
[WhiteElo "2486"]
[BlackElo "2239"]
[Result "1-0"]
[Round "03"]
[TimeControl "180+2"]
[Date "2023.02.21"]
[WhiteClock "0:00:21"]
[BlackClock "0:00:08"]

1. c4 {[%clk 0:02:47]}  e5 {[%clk 0:01:53]} 2. Nc3 {[%clk 0:02:40]}  Bb4 {[%clk 0:01:53]} 3. e3 {[%clk 0:02:34]}  Nf6 {[%clk 0:01:52]} 4. Nge2 {[%clk 0:02:33]}  O-O {[%clk 0:01:52]} 5. a3 {[%clk 0:02:33]}  Be7 {[%clk 0:01:48]} 6. d4 {[%clk 0:02:28]}  d6 {[%clk 0:01:48]} 7. g3 {[%clk 0:02:20]}  Nbd7 {[%clk 0:01:46]} 8. Bg2 {[%clk 0:02:20]}  c6 {[%clk 0:01:46]} 9. O-O {[%clk 0:02:18]}  Re8 {[%clk 0:01:46]} 10. b4 {[%clk 0:02:15]}  h6 {[%clk 0:01:45]} 11. Bb2 {[%clk 0:02:14]}  Bf8 {[%clk 0:01:45]} 12. Qc2 {[%clk 0:02:10]}  Qc7 {[%clk 0:01:44]} 13. h3 {[%clk 0:02:09]}  b6 {[%clk 0:01:39]} 14. e4 {[%clk 0:02:03]}  exd4 {[%clk 0:01:37]} 15. Nxd4 {[%clk 0:02:02]}  Bb7 {[%clk 0:01:37]} 16. Rad1 {[%clk 0:01:59]}  Ne5 {[%clk 0:01:36]} 17. Nce2 {[%clk 0:01:48]}  Ba6 {[%clk 0:01:30]} 18. Nf5 {[%clk 0:01:35]}  Rad8 {[%clk 0:01:16]} 19. Ne3 {[%clk 0:01:29]}  Qe7 {[%clk 0:00:47]} 20. f4 {[%clk 0:01:24]}  Ng6 {[%clk 0:00:47]} 21. Nf5 {[%clk 0:01:19]}  Qc7 {[%clk 0:00:39]} 22. Nxh6+ {[%clk 0:01:15]}  gxh6 {[%clk 0:00:40]} 23. Bxf6 {[%clk 0:01:14]}  Be7 {[%clk 0:00:40]} 24. Ba1 {[%clk 0:01:10]}  Bf8 {[%clk 0:00:36]} 25. Nd4 {[%clk 0:01:09]}  Bc8 {[%clk 0:00:33]} 26. Nf5 {[%clk 0:01:05]}  Kh7 {[%clk 0:00:26]} 27. Qc3 {[%clk 0:01:03]}  c5 {[%clk 0:00:19]} 28. b5 {[%clk 0:01:02]}  Be6 {[%clk 0:00:13]} 29. g4 {[%clk 0:00:58]}  Qd7 {[%clk 0:00:13]} 30. h4 {[%clk 0:00:58]}  f6 {[%clk 0:00:01]} 31. h5 {[%clk 0:00:53]}  Bxf5 {[%clk 0:00:01]} 32. exf5 {[%clk 0:00:47]}  Nh4 {[%clk 0:00:01]} 33. Qxf6 {[%clk 0:00:42]}  Bg7 {[%clk 0:00:02]} 34. Qxg7+ {[%clk 0:00:38]}  Qxg7 {[%clk 0:00:02]} 35. Bxg7 {[%clk 0:00:38]}  Kxg7 {[%clk 0:00:02]} 36. Rfe1 {[%clk 0:00:37]}  Nxg2 {[%clk 0:00:03]} 37. Kxg2 {[%clk 0:00:37]}  Kf6 {[%clk 0:00:04]} 38. Kf3 {[%clk 0:00:37]}  Rxe1 {[%clk 0:00:03]} 39. Rxe1 {[%clk 0:00:36]}  d5 {[%clk 0:00:04]} 40. Re6+ {[%clk 0:00:36]}  Kg7 {[%clk 0:00:04]} 41. cxd5 {[%clk 0:00:35]}  Rxd5 {[%clk 0:00:05]} 42. Re7+ {[%clk 0:00:34]}  Kf8 {[%clk 0:00:05]} 43. Rxa7 {[%clk 0:00:34]}  c4 {[%clk 0:00:06]} 44. Rc7 {[%clk 0:00:33]}  Rxb5 {[%clk 0:00:06]} 45. Rxc4 {[%clk 0:00:32]}  Rb3+ {[%clk 0:00:06]} 46. Ke4 {[%clk 0:00:32]}  Rg3 {[%clk 0:00:06]} 47. Rc8+ {[%clk 0:00:27]}  Ke7 {[%clk 0:00:06]} 48. Rc7+ {[%clk 0:00:27]}  Kf8 {[%clk 0:00:04]} 49. Rc8+ {[%clk 0:00:20]}  Ke7 {[%clk 0:00:04]} 50. Rg8 {[%clk 0:00:19]}  Kf7 {[%clk 0:00:04]} 51. Rg6 {[%clk 0:00:19]}  b5 {[%clk 0:00:04]} 52. g5 {[%clk 0:00:18]}  hxg5 {[%clk 0:00:04]} 53. fxg5 {[%clk 0:00:19]}  Rxa3 {[%clk 0:00:03]} 54. h6 {[%clk 0:00:19]}  b4 {[%clk 0:00:03]} 55. Rg7+ {[%clk 0:00:19]}  Kf8 {[%clk 0:00:03]} 56. Rb7 {[%clk 0:00:19]}  b3 {[%clk 0:00:03]} 57. h7 {[%clk 0:00:18]}  Ra4+ {[%clk 0:00:03]} 58. Ke5 {[%clk 0:00:18]}  Rh4 {[%clk 0:00:04]} 59. Kf6 {[%clk 0:00:16]}  Ke8 {[%clk 0:00:02]} 60. Rb8+ {[%clk 0:00:16]}  Kd7 {[%clk 0:00:02]} 61. h8=Q {[%clk 0:00:16]}  Rxh8 {[%clk 0:00:01]} 62. Rxh8 {[%clk 0:00:17]}  Kc7 {[%clk 0:00:01]} 63. Rh1 {[%clk 0:00:17]}  b2 {[%clk 0:00:02]} 64. Rb1 {[%clk 0:00:18]}  Kd6 {[%clk 0:00:03]} 65. Rxb2 {[%clk 0:00:19]}  Kd5 {[%clk 0:00:04]} 66. g6 {[%clk 0:00:20]}  Ke4 {[%clk 0:00:05]} 67. g7 {[%clk 0:00:19]}  Kf4 {[%clk 0:00:05]} 68. g8=Q {[%clk 0:00:20]}  Kf3 {[%clk 0:00:06]} 69. Qc8 {[%clk 0:00:20]}  Ke3 {[%clk 0:00:07]} 70. Qc3+ {[%clk 0:00:21]}  Kf4 {[%clk 0:00:08]} 71. Rb4# {[%clk 0:00:21]} 1-0


[Site "https://www.chess.com"]

[Event "Titled Tuesday Blitz February 21 Early 2023"]
[White "Kvaloy, Aksel Bu"]
[Black "Bas Mas, Jose Joaquin"]
[WhiteFideId "1528815"]
[BlackFideId "22219064"]
[WhiteElo "2321"]
[BlackElo "2197"]
[Result "1-0"]
[Round "03"]
[TimeControl "180+2"]
[Date "2023.02.21"]
[WhiteClock "0:00:40"]
[BlackClock "0:00:12"]

1. d4 {[%clk 0:02:58]}  e6 {[%clk 0:03:00]} 2. e4 {[%clk 0:02:58]}  d5 {[%clk 0:03:01]} 3. Nc3 {[%clk 0:02:51]}  Nf6 {[%clk 0:03:00]} 4. e5 {[%clk 0:02:52]}  Nfd7 {[%clk 0:03:00]} 5. f4 {[%clk 0:02:51]}  c5 {[%clk 0:03:01]} 6. Nf3 {[%clk 0:02:51]}  Nc6 {[%clk 0:03:01]} 7. Be3 {[%clk 0:02:51]}  Qb6 {[%clk 0:02:59]} 8. Qd2 {[%clk 0:02:47]}  a6 {[%clk 0:02:50]} 9. Na4 {[%clk 0:02:43]}  Qa7 {[%clk 0:02:41]} 10. dxc5 {[%clk 0:02:42]}  Nxc5 {[%clk 0:02:20]} 11. Nxc5 {[%clk 0:02:40]}  Bxc5 {[%clk 0:02:19]} 12. Bxc5 {[%clk 0:02:41]}  Qxc5 {[%clk 0:02:20]} 13. c3 {[%clk 0:02:42]}  b5 {[%clk 0:02:15]} 14. Bd3 {[%clk 0:02:40]}  O-O {[%clk 0:02:14]} 15. Nd4 {[%clk 0:02:40]}  f6 {[%clk 0:02:11]} 16. Qe3 {[%clk 0:02:32]}  Nxd4 {[%clk 0:02:03]} 17. cxd4 {[%clk 0:02:30]}  Qb4+ {[%clk 0:02:03]} 18. Qd2 {[%clk 0:02:14]}  Qxd2+ {[%clk 0:02:02]} 19. Kxd2 {[%clk 0:02:15]}  fxe5 {[%clk 0:02:02]} 20. fxe5 {[%clk 0:02:15]}  Rf2+ {[%clk 0:02:01]} 21. Be2 {[%clk 0:02:16]}  Bd7 {[%clk 0:01:48]} 22. Rhg1 {[%clk 0:02:09]}  Rf4 {[%clk 0:01:43]} 23. Kd3 {[%clk 0:01:56]}  Rc8 {[%clk 0:01:33]} 24. Rac1 {[%clk 0:01:37]}  Rc4 {[%clk 0:01:32]} 25. Rxc4 {[%clk 0:01:37]}  dxc4+ {[%clk 0:01:21]} 26. Ke3 {[%clk 0:01:37]}  Rh4 {[%clk 0:01:21]} 27. h3 {[%clk 0:01:34]}  Bc6 {[%clk 0:01:21]} 28. Bg4 {[%clk 0:01:33]}  Kf7 {[%clk 0:01:18]} 29. a4 {[%clk 0:01:26]}  b4 {[%clk 0:01:14]} 30. g3 {[%clk 0:01:14]}  Rh6 {[%clk 0:01:13]} 31. Rc1 {[%clk 0:01:13]}  Bd5 {[%clk 0:01:10]} 32. h4 {[%clk 0:01:12]}  Ke7 {[%clk 0:00:48]} 33. Be2 {[%clk 0:01:11]}  g5 {[%clk 0:00:47]} 34. hxg5 {[%clk 0:01:09]}  Rh3 {[%clk 0:00:47]} 35. Bxc4 {[%clk 0:00:58]}  Bxc4 {[%clk 0:00:42]} 36. Rxc4 {[%clk 0:00:59]}  Rxg3+ {[%clk 0:00:43]} 37. Kf4 {[%clk 0:00:55]}  Rb3 {[%clk 0:00:42]} 38. Rc7+ {[%clk 0:00:54]}  Kf8 {[%clk 0:00:42]} 39. Rxh7 {[%clk 0:00:50]}  Rxb2 {[%clk 0:00:42]} 40. g6 {[%clk 0:00:51]}  Ra2 {[%clk 0:00:25]} 41. Kg5 {[%clk 0:00:48]}  Rf2 {[%clk 0:00:21]} 42. Ra7 {[%clk 0:00:43]}  b3 {[%clk 0:00:18]} 43. Rxa6 {[%clk 0:00:43]}  b2 {[%clk 0:00:19]} 44. Ra8+ {[%clk 0:00:42]}  Kg7 {[%clk 0:00:19]} 45. Ra7+ {[%clk 0:00:43]}  Kg8 {[%clk 0:00:19]} 46. Rb7 {[%clk 0:00:43]}  Rd2 {[%clk 0:00:12]} 47. Kf6 {[%clk 0:00:40]} 1-0


[Site "https://www.chess.com"]

[Event "Titled Tuesday Blitz February 21 Early 2023"]
[White "Florescu, Codrut-Constantin"]
[Black "Gu, Xiaobing"]
[WhiteFideId "1202200"]
[BlackFideId "8602611"]
[WhiteElo "2259"]
[BlackElo "2167"]
[Result "1-0"]
[Round "03"]
[TimeControl "180+2"]
[Date "2023.02.21"]
[WhiteClock "0:00:17"]
[BlackClock "0:00:05"]

1. e4 {[%clk 0:02:57]}  c5 {[%clk 0:02:54]} 2. Nf3 {[%clk 0:02:56]}  d6 {[%clk 0:02:53]} 3. d4 {[%clk 0:02:56]}  cxd4 {[%clk 0:02:53]} 4. Nxd4 {[%clk 0:02:57]}  Nf6 {[%clk 0:02:51]} 5. Nc3 {[%clk 0:02:57]}  a6 {[%clk 0:02:50]} 6. f4 {[%clk 0:02:57]}  e5 {[%clk 0:02:49]} 7. Nf3 {[%clk 0:02:57]}  Nbd7 {[%clk 0:02:36]} 8. Bc4 {[%clk 0:02:57]}  Be7 {[%clk 0:02:35]} 9. a4 {[%clk 0:02:55]}  Qc7 {[%clk 0:02:31]} 10. Qe2 {[%clk 0:02:55]}  O-O {[%clk 0:02:24]} 11. O-O {[%clk 0:02:55]}  Nc5 {[%clk 0:02:19]} 12. Kh1 {[%clk 0:02:52]}  Re8 {[%clk 0:02:06]} 13. fxe5 {[%clk 0:02:51]}  dxe5 {[%clk 0:02:06]} 14. Bg5 {[%clk 0:02:50]}  Be6 {[%clk 0:02:03]} 15. Bxf6 {[%clk 0:02:45]}  Bxf6 {[%clk 0:01:56]} 16. Nd5 {[%clk 0:02:44]}  Bxd5 {[%clk 0:01:50]} 17. Bxd5 {[%clk 0:02:44]}  Ne6 {[%clk 0:01:49]} 18. c4 {[%clk 0:02:38]}  a5 {[%clk 0:01:21]} 19. g3 {[%clk 0:02:36]}  Ra6 {[%clk 0:01:13]} 20. Rad1 {[%clk 0:02:34]}  Rb6 {[%clk 0:01:12]} 21. Rd2 {[%clk 0:02:34]}  Rb3 {[%clk 0:01:03]} 22. Kg2 {[%clk 0:02:28]}  b6 {[%clk 0:00:55]} 23. Rfd1 {[%clk 0:02:24]}  h6 {[%clk 0:00:51]} 24. Rd3 {[%clk 0:02:16]}  Rb4 {[%clk 0:00:46]} 25. Bxe6 {[%clk 0:02:14]}  fxe6 {[%clk 0:00:39]} 26. b3 {[%clk 0:02:14]}  Kh7 {[%clk 0:00:33]} 27. h4 {[%clk 0:02:11]}  h5 {[%clk 0:00:29]} 28. Ne1 {[%clk 0:02:05]}  Qf7 {[%clk 0:00:23]} 29. Nc2 {[%clk 0:02:00]}  Be7 {[%clk 0:00:23]} 30. Nxb4 {[%clk 0:02:00]}  Bxb4 {[%clk 0:00:20]} 31. Rf1 {[%clk 0:01:46]}  Qg6 {[%clk 0:00:20]} 32. Rd7 {[%clk 0:01:45]}  Bc5 {[%clk 0:00:20]} 33. Qf3 {[%clk 0:01:45]}  Rf8 {[%clk 0:00:19]} 34. Qd3 {[%clk 0:01:30]}  Rxf1 {[%clk 0:00:19]} 35. Kxf1 {[%clk 0:01:30]}  Qg4 {[%clk 0:00:19]} 36. Rf7 {[%clk 0:01:22]}  Qh3+ {[%clk 0:00:19]} 37. Ke2 {[%clk 0:01:22]}  Qg2+ {[%clk 0:00:18]} 38. Kd1 {[%clk 0:01:21]}  Qg1+ {[%clk 0:00:18]} 39. Kc2 {[%clk 0:01:20]}  Qg2+ {[%clk 0:00:18]} 40. Kd1 {[%clk 0:01:17]}  Qg1+ {[%clk 0:00:18]} 41. Rf1 {[%clk 0:01:17]}  Qg2 {[%clk 0:00:18]} 42. Qf3 {[%clk 0:01:15]}  Qb2 {[%clk 0:00:18]} 43. Qxh5+ {[%clk 0:01:14]}  Kg8 {[%clk 0:00:18]} 44. Rf3 {[%clk 0:00:33]}  Qb1+ {[%clk 0:00:17]} 45. Ke2 {[%clk 0:00:33]}  Qc2+ {[%clk 0:00:17]} 46. Kf1 {[%clk 0:00:33]}  Qd1+ {[%clk 0:00:17]} 47. Kg2 {[%clk 0:00:28]}  Qg1+ {[%clk 0:00:17]} 48. Kh3 {[%clk 0:00:29]}  Qh1+ {[%clk 0:00:14]} 49. Kg4 {[%clk 0:00:29]}  Qd1 {[%clk 0:00:14]} 50. Qf7+ {[%clk 0:00:22]}  Kh8 {[%clk 0:00:14]} 51. Qxe6 {[%clk 0:00:20]}  Bd4 {[%clk 0:00:12]} 52. Qf5 {[%clk 0:00:19]}  Qe2 {[%clk 0:00:11]} 53. h5 {[%clk 0:00:18]}  Qd1 {[%clk 0:00:09]} 54. h6 {[%clk 0:00:18]}  gxh6 {[%clk 0:00:08]} 55. Qf8+ {[%clk 0:00:18]}  Kh7 {[%clk 0:00:08]} 56. Qf7+ {[%clk 0:00:18]}  Kh8 {[%clk 0:00:08]} 57. Qg6 {[%clk 0:00:18]}  Be3 {[%clk 0:00:06]} 58. Qe8+ {[%clk 0:00:15]}  Kh7 {[%clk 0:00:06]} 59. Qf7+ {[%clk 0:00:16]}  Kh8 {[%clk 0:00:06]} 60. Kh5 {[%clk 0:00:16]}  Qh1+ {[%clk 0:00:05]} 61. Kg6 {[%clk 0:00:17]} 1-0


[Site "https://www.chess.com"]

[Event "Titled Tuesday Blitz February 21 Early 2023"]
[White "Tologon tegin, Semetei"]
[Black "Andrews, Todd"]
[WhiteFideId "13800574"]
[BlackFideId "2012456"]
[WhiteElo "2372"]
[BlackElo "2220"]
[Result "1-0"]
[Round "03"]
[TimeControl "180+2"]
[Date "2023.02.21"]
[WhiteClock "0:00:36"]
[BlackClock "0:00:03"]

1. Nf3 {[%clk 0:02:47]}  Nf6 {[%clk 0:02:59]} 2. g3 {[%clk 0:02:47]}  g6 {[%clk 0:02:59]} 3. b3 {[%clk 0:02:46]}  Bg7 {[%clk 0:03:00]} 4. Bb2 {[%clk 0:02:46]}  O-O {[%clk 0:03:01]} 5. Bg2 {[%clk 0:02:47]}  d6 {[%clk 0:03:01]} 6. d4 {[%clk 0:02:46]}  Nc6 {[%clk 0:02:52]} 7. O-O {[%clk 0:02:46]}  e5 {[%clk 0:02:48]} 8. dxe5 {[%clk 0:02:47]}  Ng4 {[%clk 0:02:48]} 9. c4 {[%clk 0:02:47]}  Ncxe5 {[%clk 0:02:28]} 10. Nxe5 {[%clk 0:02:46]}  Nxe5 {[%clk 0:02:25]} 11. Qd2 {[%clk 0:02:46]}  c6 {[%clk 0:02:22]} 12. Nc3 {[%clk 0:02:45]}  Qe7 {[%clk 0:02:19]} 13. Rad1 {[%clk 0:02:42]}  Rd8 {[%clk 0:02:18]} 14. Ba3 {[%clk 0:02:39]}  Bf8 {[%clk 0:02:14]} 15. Ne4 {[%clk 0:02:38]}  c5 {[%clk 0:01:23]} 16. Bxc5 {[%clk 0:02:36]}  Bf5 {[%clk 0:01:19]} 17. Nxd6 {[%clk 0:02:30]}  Qe6 {[%clk 0:01:15]} 18. Qd5 {[%clk 0:01:56]}  Qf6 {[%clk 0:01:04]} 19. Qxb7 {[%clk 0:01:07]}  Rab8 {[%clk 0:00:59]} 20. Qxa7 {[%clk 0:01:06]}  h5 {[%clk 0:00:51]} 21. Ne4 {[%clk 0:01:01]}  Bxe4 {[%clk 0:00:34]} 22. Bxe4 {[%clk 0:01:02]}  h4 {[%clk 0:00:22]} 23. Rxd8 {[%clk 0:00:54]}  Rxd8 {[%clk 0:00:22]} 24. Bxf8 {[%clk 0:00:54]}  Rxf8 {[%clk 0:00:22]} 25. Rd1 {[%clk 0:00:51]}  Kg7 {[%clk 0:00:19]} 26. Qd4 {[%clk 0:00:50]}  hxg3 {[%clk 0:00:19]} 27. hxg3 {[%clk 0:00:50]}  Re8 {[%clk 0:00:12]} 28. a4 {[%clk 0:00:48]}  g5 {[%clk 0:00:10]} 29. a5 {[%clk 0:00:48]}  Re6 {[%clk 0:00:08]} 30. b4 {[%clk 0:00:42]}  g4 {[%clk 0:00:08]} 31. b5 {[%clk 0:00:42]}  Qg5 {[%clk 0:00:07]} 32. a6 {[%clk 0:00:40]}  Rh6 {[%clk 0:00:07]} 33. a7 {[%clk 0:00:40]}  Qh5 {[%clk 0:00:04]} 34. a8=Q {[%clk 0:00:36]}  Qh2+ {[%clk 0:00:04]} 35. Kf1 {[%clk 0:00:36]}  Qh3+ {[%clk 0:00:03]} 36. Bg2 {[%clk 0:00:36]} 1-0


[Site "https://www.chess.com"]